[Event "WYCC 2018 G14"]
[Site "Halkidiki"]
[Date "2018.10.30"]
[Round "11"]
[White "Stepanyan, Eva"]
[Black "Garifullina, Leya"]
[Result "1/2-1/2"]
[ECO "C95"]
[WhiteElo "1981"]
[BlackElo "2106"]
[Annotator "NA"]
[PlyCount "144"]
[EventDate "2018.10.20"]
[EventType "swiss"]
[EventCountry "GRE"]
[SourceTitle "playchess.com"]
[Source "ChessBase"]
[SourceQuality "1"]
[TimeControl "40/5400+30:1800+30"]

1. e4 {[%emt 0:00:00]} e5 {[%emt 0:00:00]} 2. Nf3 {[%emt 0:00:00]} Nc6 {[%emt 0:00:00]} 3. Bb5 {[%emt 0:00:00]} a6 {[%emt 0:00:15]} 4. Ba4 {[%emt 0:00:00]} Nf6 {[%emt 0:00:06]} 5. O-O {[%emt 0:00:30]} b5 {[%emt 0:01:08]} 6. Bb3 {[%emt 0:00:04]} Be7 {[%emt 0:00:17]} 7. Re1 {[%emt 0:01:10]} d6 {[%emt 0:01:23]} 8. c3 {[%emt 0:00:33]} O-O {[%emt 0:00:08]} 9. h3 {[%emt 0:00:33]} Nb8 {[%emt 0:01:13]} 10. d4 {[%emt 0:02:10]} Nbd7 {[%emt 0:00:20]} 11. Nbd2 {[%emt 0:07:07]} Bb7 {[%emt 0:00:39]} 12. a4 {[%emt 0:03:08]} c5 {[%emt 0:12:36]} 13. Bc2 {[%emt 0:12:31]} Re8 {[%emt 0:08:03]} 14. dxe5 {[%emt 0:10:11] C95: Closed Ruy Lopez: Breyer Variation with 10 d4} (14. d5 c4 15. b3 cxb3 16. Nxb3 Qc7 17. Be3 Nb6 18. Nbd2 Nfd7 19. axb5 {½-½ (19) Areshchenko,A (2678)-Efimenko,Z (2651) Rivne 2016}) 14... dxe5 {[%emt 0:03:54]} 15. b3 {[%emt 0:03:46]} Qc7 {[%emt 0:04:36]} 16. Qe2 {[%emt 0:01:05]} Bc6 {[%emt 0:03:04]} 17. Bb2 {[%emt 0:03:36]} Bf8 {[%emt 0:10:19] [#]} 18. Nf1 $146 {[%emt 0:08:31]} ({Predecessor:} 18. Ra2 g6 19. Rea1 Qb7 20. axb5 axb5 21. Rxa8 Rxa8 22. Rxa8 Qxa8 {½-½ (50) Felgaer,R (2556)-Butnorius,A (2402) Gibraltar 2007}) 18... Qb7 {[%emt 0:03:29]} 19. Rab1 {[%emt 0:05:33]} Nh5 {[%emt 0:06:28]} 20. g3 {[%emt 0:02:13]} g6 {[%emt 0:05:31]} 21. N3d2 {[%emt 0:01:41]} Ng7 {[%emt 0:02:29]} 22. Ne3 {[%emt 0:00:58]} Ne6 {[%emt 0:00:30]} 23. Nd5 {[%emt 0:05:55]} Ng5 {[%emt 0:08:03]} 24. axb5 {[%emt 0:12:53]} axb5 {[%emt 0:01:04]} 25. Nf3 {[%emt 0:10:55] [#]} Nxe4 $1 {[%emt 0:03:04]} 26. Bxe4 {[%emt 0:00:28]} Bxd5 {[%emt 0:00:06]} 27. Bxd5 {[%emt 0:01:32]} Qxd5 {[%emt 0:00:06]} 28. Qxb5 {[%emt 0:00:31]} Rab8 {[%emt 0:01:31]} 29. Qa4 {[%emt 0:00:59]} Qxf3 {[%emt 0:02:35]} 30. Qxd7 {[%emt 0:00:03]} Red8 {[%emt 0:01:24]} 31. Qa4 {[%emt 0:03:49]} Rd2 {[%emt 0:01:10]} 32. Rf1 {[%emt 0:00:16]} e4 {[%emt 0:02:22]} 33. Bc1 {[%emt 0:00:38]} Re2 {[%emt 0:00:31]} 34. Rb2 {[%emt 0:02:22]} Rd8 {[%emt 0:01:54]} 35. Rxe2 {[%emt 0:00:11]} Qxe2 {[%emt 0:00:04]} 36. Be3 {[%emt 0:00:28]} Qf3 {[%emt 0:02:52]} 37. b4 {[%emt 0:01:23]} cxb4 {[%emt 0:03:52]} 38. cxb4 {[%emt 0:00:02]} Rd3 {[%emt 0:00:37]} 39. Re1 {[%emt 0:00:06]} h5 {[%emt 0:00:24]} 40. Qe8 {[%emt 0:00:00]} Kg7 {[%emt 0:00:00]} 41. Qe5+ {[%emt 0:01:32]} Kh7 {[%emt 0:04:07]} 42. Bd4 {[%emt 0:00:49]} f6 {[%emt 0:00:46]} 43. Qxf6 {[%emt 0:01:04]} Qxf6 {[%emt 0:00:11]} 44. Bxf6 {[%emt 0:00:02]} Bxb4 {[%emt 0:01:12]} 45. Rxe4 {[%emt 0:00:01]} Bf8 {[%emt 0:00:41]} 46. Re8 {[%emt 0:01:00]} Kg8 {[%emt 0:00:06]} 47. Be7 {[%emt 0:01:18]} Kf7 {[%emt 0:00:04]} 48. Rxf8+ {[%emt 0:01:44]} Kxe7 {[%emt 0:00:05]} 49. Rf4 {[%emt 0:00:11]} Ra3 {[%emt 0:00:35]} 50. Kg2 {[%emt 0:00:08]} Rb3 {[%emt 0:00:18]} 51. g4 {[%emt 0:00:37]} hxg4 {[%emt 0:00:21]} 52. hxg4 {[%emt 0:00:01]} Ra3 {[%emt 0:00:31]} 53. Rf3 {[%emt 0:00:51]} Ra5 {[%emt 0:00:22]} 54. Kg3 {[%emt 0:00:08]} Rb5 {[%emt 0:00:08]} 55. Kh4 {[%emt 0:01:06]} Ra5 {[%emt 0:00:22]} 56. g5 {[%emt 0:00:26]} Ra4+ {[%emt 0:00:37]} 57. Kg3 {[%emt 0:00:04]} Ra6 {[%emt 0:00:06]} 58. Kg4 {[%emt 0:00:17]} Rb6 {[%emt 0:00:08]} 59. Ra3 {[%emt 0:01:45]} Rb4+ {[%emt 0:00:32]} 60. f4 {[%emt 0:00:13]} Kf7 {[%emt 0:00:12]} 61. Ra7+ {[%emt 0:00:14]} Kg8 {[%emt 0:00:08]} 62. Rd7 {[%emt 0:01:02]} Rb3 {[%emt 0:00:25]} 63. Re7 {[%emt 0:00:29]} Ra3 {[%emt 0:00:08]} 64. Re4 {[%emt 0:00:26]} Rb3 {[%emt 0:00:48]} 65. f5 {[%emt 0:00:19]} gxf5+ {[%emt 0:00:10]} 66. Kxf5 {[%emt 0:00:02]} Rb6 {[%emt 0:00:12]} 67. Re5 {[%emt 0:00:59]} Ra6 {[%emt 0:00:14]} 68. g6 {[%emt 0:00:54]} Ra1 {[%emt 0:00:10]} 69. Kf6 {[%emt 0:01:18]} Rf1+ {[%emt 0:00:04]} 70. Rf5 {[%emt 0:01:07]} Rxf5+ {[%emt 0:00:11]} 71. Kxf5 $11 {[%emt 0:00:02]} Kg7 {[%emt 0:00:07]} 72. Kg5 {[%emt 0:00:18]} Kg8 {[%emt 0:00:07]} 1/2-1/2

[Event "WYCC 2018 G14"]
[Site "Halkidiki"]
[Date "2018.10.30"]
[Round "11"]
[White "Ziegenfuss, Antonia"]
[Black "Villanyi, Alexia"]
[Result "1-0"]
[ECO "E20"]
[WhiteElo "1969"]
[BlackElo "1709"]
[Annotator "NA"]
[PlyCount "53"]
[EventDate "2018.10.20"]
[EventType "swiss"]
[EventCountry "GRE"]
[SourceTitle "playchess.com"]
[Source "ChessBase"]
[SourceQuality "1"]
[TimeControl "40/5400+30:1800+30"]

1. d4 {[%emt 0:00:00]} Nf6 {[%emt 0:00:00]} 2. c4 {[%emt 0:00:00]} e6 {[%emt 0:03:36]} 3. Nc3 {[%emt 0:00:00]} Bb4 {[%emt 0:00:17]} 4. f3 {[%emt 0:00:00]} O-O {[%emt 0:00:16]} 5. e4 {[%emt 0:00:39]} d5 {[%emt 0:00:37]} 6. e5 {[%emt 0:06:20]} Nfd7 {[%emt 0:00:27]} 7. h4 {[%emt 0:05:25]} f6 {[%emt 0:13:07]} 8. Qb3 {[%emt 0:17:13]} Nc6 {[%emt 0:32:09]} 9. Bd3 {[%emt 0:20:04]} Nb6 {[%emt 0:05:15]} 10. c5 {[%emt 0:06:21]} Nc4 {[%emt 0:04:52]} 11. f4 {[%emt 0:12:24]} b6 {[%emt 0:20:30]} 12. cxb6 {[%emt 0:02:02]} axb6 {[%emt 0:00:10]} 13. Nf3 {[%emt 0:01:13]} Ba6 {[%emt 0:00:35]} 14. Qc2 {[%emt 0:03:12]} f5 {[%emt 0:01:57]} 15. a3 {[%emt 0:02:03]} Be7 {[%emt 0:02:34]} 16. b4 {[%emt 0:02:02]} b5 {[%emt 0:01:26]} 17. g4 {[%emt 0:01:20]} g6 {[%emt 0:00:40]} 18. h5 {[%emt 0:01:59]} Kg7 {[%emt 0:03:52]} 19. Qg2 {[%emt 0:01:53]} Qe8 {[%emt 0:01:12]} 20. Ra2 {[%emt 0:00:45]} Bxb4 {[%emt 0:01:20]} 21. axb4 {[%emt 0:00:51]} Nxb4 {[%emt 0:00:02]} 22. Bxc4 {[%emt 0:00:19]} Nxa2 {[%emt 0:00:15]} 23. Bxa2 {[%emt 0:00:05]} b4 {[%emt 0:00:11]} 24. Nd1 {[%emt 0:00:33]} Rh8 {[%emt 0:00:55]} 25. gxf5 {[%emt 0:00:23]} exf5 {[%emt 0:00:07]} 26. Bxd5 {[%emt 0:00:05]} Rd8 {[%emt 0:01:01]} 27. Ng5 {[%emt 0:00:14]} 1-0

[Event "WYCC 2018 G14"]
[Site "Halkidiki"]
[Date "2018.10.30"]
[Round "11"]
[White "Lehaci, Miruna-Daria"]
[Black "Dhyana Patel"]
[Result "1-0"]
[ECO "B27"]
[WhiteElo "1933"]
[BlackElo "2002"]
[Annotator "NA"]
[PlyCount "153"]
[EventDate "2018.10.20"]
[EventType "swiss"]
[EventCountry "GRE"]
[SourceTitle "playchess.com"]
[Source "ChessBase"]
[SourceQuality "1"]
[TimeControl "40/5400+30:1800+30"]

1. e4 {[%emt 0:00:00]} c5 {[%emt 0:00:00]} 2. Nf3 {[%emt 0:00:00]} g6 {[%emt 0:00:18]} 3. d4 {[%emt 0:00:00]} cxd4 {[%emt 0:00:11]} 4. Qxd4 {[%emt 0:00:00]} Nf6 {[%emt 0:00:23]} 5. Nc3 {[%emt 0:00:00]} Nc6 {[%emt 0:00:35]} 6. Qa4 {[%emt 0:00:00]} d6 {[%emt 0:00:41]} 7. e5 {[%emt 0:00:00]} dxe5 {[%emt 0:00:37]} 8. Nxe5 {[%emt 0:00:01]} Qd4 {[%emt 0:00:32] B27: Sicilian: 2 Nf3, unusual Black 2nd moves} 9. Nxc6 {[%emt 0:01:30]} Qxa4 {[%emt 0:00:46]} 10. Nxa4 {[%emt 0:00:04]} bxc6 {[%emt 0:00:06] LiveBook: 36 Games} 11. Be3 {[%emt 0:10:29]} Bg7 {[%emt 0:00:40]} 12. c3 $146 {[%emt 0:01:49]} ({Predecessor:} 12. Bd4 O-O 13. Be2 Bf5 14. O-O-O Rfd8 15. Bf3 Bh6+ 16. Be3 Bxe3+ 17. fxe3 {1-0 (41) Khanin,S (2458)-Savchenko,B (2566) Taganrog 2018}) 12... O-O {[%emt 0:01:31]} 13. Be2 {[%emt 0:03:34]} Bf5 {[%emt 0:00:41]} 14. O-O {[%emt 0:02:04]} Rfd8 {[%emt 0:01:42]} 15. Ba6 {[%emt 0:07:39]} Bd3 {[%emt 0:06:25]} 16. Bxd3 {[%emt 0:00:06]} Rxd3 {[%emt 0:00:02]} 17. Nc5 {[%emt 0:00:23]} Rd5 {[%emt 0:00:35]} 18. c4 {[%emt 0:05:29]} Rdd8 {[%emt 0:02:01]} 19. h3 {[%emt 0:07:15]} Ne8 {[%emt 0:00:54]} 20. Nb7 {[%emt 0:07:35]} Rdb8 {[%emt 0:03:19]} 21. Na5 {[%emt 0:00:30]} Rc8 {[%emt 0:01:19]} 22. Rab1 {[%emt 0:00:56]} Rab8 {[%emt 0:01:14]} 23. b4 {[%emt 0:00:48]} Rc7 {[%emt 0:13:48]} 24. Rb3 {[%emt 0:14:57]} Nd6 {[%emt 0:01:43]} 25. Re1 {[%emt 0:01:05]} Re8 {[%emt 0:03:54]} 26. Rd3 {[%emt 0:04:20]} Nf5 {[%emt 0:02:37]} 27. Bc5 {[%emt 0:00:10]} e5 {[%emt 0:01:08]} 28. g4 {[%emt 0:06:52]} Nh4 {[%emt 0:01:01]} 29. Red1 {[%emt 0:00:16]} Rcc8 {[%emt 0:04:27]} 30. Bxa7 {[%emt 0:03:08]} Bf8 {[%emt 0:00:25]} 31. a3 {[%emt 0:02:15]} e4 {[%emt 0:01:09]} 32. Rd7 {[%emt 0:00:13]} Nf3+ {[%emt 0:00:09]} 33. Kg2 {[%emt 0:00:07]} Ne5 {[%emt 0:00:27]} 34. Rb7 {[%emt 0:02:45]} Nd3 {[%emt 0:00:34]} 35. Kf1 {[%emt 0:03:52]} Re6 {[%emt 0:05:57]} 36. Rb8 {[%emt 0:04:26]} Rxb8 {[%emt 0:02:33]} 37. Bxb8 {[%emt 0:00:05]} Rf6 {[%emt 0:00:14]} 38. Bg3 {[%emt 0:01:22]} c5 {[%emt 0:04:20]} 39. b5 {[%emt 0:00:14]} Re6 {[%emt 0:03:01]} 40. Nb3 {[%emt 0:00:00]} f5 {[%emt 0:00:00]} 41. gxf5 {[%emt 0:06:39]} gxf5 {[%emt 0:00:34]} 42. Bc7 {[%emt 0:00:07]} Kf7 {[%emt 0:11:23]} 43. Nc1 {[%emt 0:11:08]} Nb2 {[%emt 0:00:45]} 44. Rd7+ {[%emt 0:00:40]} Re7 {[%emt 0:00:19]} 45. b6 {[%emt 0:03:37]} Rxd7 {[%emt 0:00:05]} 46. b7 {[%emt 0:00:03]} Rd1+ {[%emt 0:00:05]} 47. Kg2 {[%emt 0:00:22]} Rxc1 {[%emt 0:00:15]} 48. b8=Q {[%emt 0:00:05]} Nd3 {[%emt 0:00:13]} 49. Qc8 {[%emt 0:00:58]} Ne1+ {[%emt 0:01:09]} 50. Kg3 {[%emt 0:00:39]} Rc3+ {[%emt 0:00:13]} 51. Kf4 {[%emt 0:00:33]} Rf3+ {[%emt 0:00:34]} 52. Ke5 {[%emt 0:00:17]} Nd3+ {[%emt 0:00:26]} 53. Kd5 {[%emt 0:00:05]} Rxf2 {[%emt 0:00:33]} 54. Qe6+ {[%emt 0:01:30]} Kg7 {[%emt 0:00:04]} 55. Be5+ $2 {[%emt 0:02:23]} (55. Qe8 $18) 55... Nxe5 {[%emt 0:00:11]} 56. Kxe5 {[%emt 0:02:07]} Rg2 {[%emt 0:00:37]} 57. Qxf5 {[%emt 0:01:43]} e3 {[%emt 0:00:21]} 58. Qf3 {[%emt 0:01:26]} Rg5+ {[%emt 0:00:10]} 59. Ke4 {[%emt 0:03:18]} Bd6 {[%emt 0:00:24]} 60. Kd3 {[%emt 0:00:09]} Be5 {[%emt 0:01:02]} 61. Qb7+ {[%emt 0:02:13]} Kg6 {[%emt 0:00:16]} 62. Kxe3 {[%emt 0:00:39]} Bd4+ {[%emt 0:00:21]} 63. Kd2 {[%emt 0:00:11]} Rf5 {[%emt 0:00:29]} 64. a4 {[%emt 0:01:27]} Rf2+ {[%emt 0:00:07]} 65. Kd3 {[%emt 0:00:09]} Ra2 {[%emt 0:00:29]} 66. a5 {[%emt 0:01:33]} Ra3+ {[%emt 0:00:19]} 67. Ke4 {[%emt 0:00:08]} Rxh3 {[%emt 0:00:22]} 68. a6 {[%emt 0:00:31]} Re3+ {[%emt 0:00:11]} 69. Kd5 {[%emt 0:00:04]} Re5+ {[%emt 0:00:12]} 70. Kc6 {[%emt 0:00:06]} Re6+ {[%emt 0:00:09]} 71. Kb5 {[%emt 0:00:14]} Re3 {[%emt 0:00:37]} 72. Qg2+ $18 {[%emt 0:00:27]} Kh6 {[%emt 0:00:14]} 73. a7 {[%emt 0:00:22]} Rb3+ {[%emt 0:00:06]} 74. Kc6 {[%emt 0:00:05]} Ra3 {[%emt 0:00:13]} 75. Kb7 {[%emt 0:00:48]} Rb3+ {[%emt 0:00:05]} 76. Kc8 {[%emt 0:00:07]} Re3 {[%emt 0:00:10]} 77. Qc6+ {[%emt 0:00:46]} 1-0

[Event "WYCC 2018 G14"]
[Site "Halkidiki"]
[Date "2018.10.30"]
[Round "11"]
[White "Zhu, Evelyn"]
[Black "Mrudul Dehankar"]
[Result "1/2-1/2"]
[ECO "E32"]
[WhiteElo "1926"]
[BlackElo "1996"]
[Annotator "NA"]
[PlyCount "153"]
[EventDate "2018.10.20"]
[EventType "swiss"]
[EventCountry "GRE"]
[SourceTitle "playchess.com"]
[Source "ChessBase"]
[SourceQuality "1"]
[TimeControl "40/5400+30:1800+30"]

1. d4 {[%emt 0:00:00]} Nf6 {[%emt 0:00:00]} 2. c4 {[%emt 0:00:00]} e6 {[%emt 0:00:00]} 3. Nc3 {[%emt 0:00:00]} Bb4 {[%emt 0:00:00]} 4. Qc2 {[%emt 0:00:00]} O-O {[%emt 0:00:07]} 5. a3 {[%emt 0:00:00]} Bxc3+ {[%emt 0:00:18]} 6. Qxc3 {[%emt 0:00:01]} b6 {[%emt 0:01:02]} 7. Bg5 {[%emt 0:00:14]} h6 {[%emt 0:00:15]} 8. Bh4 {[%emt 0:02:06]} Bb7 {[%emt 0:01:13]} 9. f3 {[%emt 0:02:03]} c5 {[%emt 0:06:30]} 10. dxc5 {[%emt 0:04:34]} bxc5 {[%emt 0:02:23]} 11. e3 {[%emt 0:05:01]} d5 {[%emt 0:30:06] E32: Nimzo-Indian: Classical (4 Qc2): 4...0-0} (11... d6 12. Nh3 Nbd7 13. Be2 a5 14. Bg3 Qb6 15. Rd1 d5 16. O-O a4 17. Rd2 Bc6 18. Rc1 Rfc8 19. Bf2 {½-½ (19) Kharitonov,A (2558)-Nikolov,M (2561) Aghios Kirykos 2017}) 12. Bxf6 {[%emt 0:09:30]} Qxf6 {[%emt 0:01:22]} 13. Qxf6 {[%emt 0:00:46]} gxf6 {[%emt 0:00:02]} 14. cxd5 {[%emt 0:01:06]} exd5 {[%emt 0:01:17]} 15. Bb5 {[%emt 0:05:10]} Bc6 $146 {[%emt 0:05:22]} ({Predecessor:} 15... Nc6 16. Bxc6 Bxc6 17. Rc1 c4 18. Ne2 Rab8 {0-1 (47) Shitsuka,R-Priya Panneer,R (2106) Heraklio 2002}) 16. Bd3 {[%emt 0:11:10]} Nd7 {[%emt 0:04:04]} 17. Ne2 {[%emt 0:07:10]} Rab8 {[%emt 0:10:13]} 18. Rb1 {[%emt 0:04:19]} Ne5 {[%emt 0:05:17]} 19. Kd2 {[%emt 0:03:14]} Nxd3 {[%emt 0:07:15]} 20. Kxd3 {[%emt 0:00:01]} Rb3+ {[%emt 0:00:19]} 21. Nc3 {[%emt 0:06:42]} ({White should play} 21. Kd2 $15) 21... Rfb8 {[%emt 0:02:48]} 22. Kc2 {[%emt 0:02:20]} d4 {[%emt 0:01:44]} 23. exd4 {[%emt 0:08:40]} cxd4 {[%emt 0:00:04]} 24. Ne4 {[%emt 0:01:05]} d3+ {[%emt 0:06:19]} 25. Kd2 {[%emt 0:01:06]} Bxe4 {[%emt 0:03:24]} 26. fxe4 {[%emt 0:00:01]} Rxb2+ {[%emt 0:00:14]} 27. Rxb2 {[%emt 0:00:06]} Rxb2+ {[%emt 0:00:04]} 28. Kxd3 {[%emt 0:00:14]} Rxg2 {[%emt 0:00:05]} 29. Rf1 {[%emt 0:08:10]} Ra2 {[%emt 0:07:42]} 30. Rxf6 {[%emt 0:01:17]} Rxa3+ {[%emt 0:00:08]} 31. Kd4 {[%emt 0:01:55]} Kg7 {[%emt 0:00:12]} 32. Rf2 {[%emt 0:03:58]} a5 {[%emt 0:02:45]} 33. Rg2+ {[%emt 0:08:17]} Kf6 {[%emt 0:01:05]} 34. Rf2+ {[%emt 0:00:04]} Ke7 {[%emt 0:00:25]} 35. Rf5 {[%emt 0:00:51]} Rh3 {[%emt 0:01:10]} 36. Rxa5 {[%emt 0:01:04]} Rxh2 {[%emt 0:00:08]} 37. Ra6 {[%emt 0:01:16]} Kf8 {[%emt 0:01:15]} 38. Ke3 {[%emt 0:01:06]} Kg7 {[%emt 0:00:27]} 39. Kf3 {[%emt 0:00:27]} Rh4 {[%emt 0:00:47]} 40. Rb6 {[%emt 0:00:00]} Rh1 {[%emt 0:00:00]} 41. Rb5 {[%emt 0:12:01]} Rf1+ {[%emt 0:02:07]} 42. Kg2 {[%emt 0:04:06]} Re1 {[%emt 0:02:18]} 43. Re5 {[%emt 0:01:52]} Kg6 {[%emt 0:04:24]} 44. Kf2 {[%emt 0:02:18]} Rb1 {[%emt 0:01:35]} 45. Ra5 {[%emt 0:03:34]} Rb3 {[%emt 0:00:20]} 46. Ra6+ {[%emt 0:00:51]} Kg5 {[%emt 0:01:13]} 47. Ra5+ {[%emt 0:01:07]} Kg4 {[%emt 0:05:22]} 48. Rf5 {[%emt 0:06:42]} Rb7 {[%emt 0:00:19]} 49. Rf6 {[%emt 0:00:30]} h5 {[%emt 0:00:27]} 50. e5 {[%emt 0:01:34]} Re7 {[%emt 0:03:09]} 51. Kg2 {[%emt 0:00:33]} h4 {[%emt 0:01:01]} 52. Kh2 {[%emt 0:02:30]} h3 {[%emt 0:00:31]} 53. Rf1 {[%emt 0:01:44]} Ra7 {[%emt 0:01:34]} 54. Rg1+ {[%emt 0:01:09]} Kh4 {[%emt 0:01:04]} 55. Rg7 {[%emt 0:00:37]} Ra2+ {[%emt 0:00:08]} 56. Kh1 $1 {[%emt 0:00:29]} Rf2 $11 {[%emt 0:00:11]} 57. Rh7+ {[%emt 0:00:10]} Kg4 {[%emt 0:01:52]} 58. Rg7+ {[%emt 0:00:08]} Kh5 {[%emt 0:00:31]} 59. Rh7+ {[%emt 0:00:06]} Kg6 {[%emt 0:00:05]} 60. Rxh3 {[%emt 0:00:07]} Kf5 {[%emt 0:01:00]} 61. Kg1 {[%emt 0:00:39]} Rf4 {[%emt 0:00:19]} 62. Re3 {[%emt 0:01:29]} Rg4+ {[%emt 0:00:53]} 63. Kf2 {[%emt 0:00:24]} Re4 {[%emt 0:00:15]} 64. Ra3 {[%emt 0:00:09]} Rxe5 {[%emt 0:00:18]} 65. Rf3+ {[%emt 0:00:09]} Ke6 {[%emt 0:00:33]} 66. Ra3 {[%emt 0:00:05]} f6 {[%emt 0:00:22]} 67. Kf3 {[%emt 0:00:36]} Kf5 {[%emt 0:00:05]} 68. Ra4 {[%emt 0:00:18]} Rb5 {[%emt 0:00:50]} 69. Rf4+ {[%emt 0:00:24]} Kg6 {[%emt 0:01:01]} 70. Rg4+ {[%emt 0:00:05]} Kf7 {[%emt 0:00:51]} 71. Ra4 {[%emt 0:00:13]} Rb3+ {[%emt 0:00:03]} 72. Kf4 {[%emt 0:00:15]} Kg6 {[%emt 0:00:03]} 73. Ra5 {[%emt 0:00:16]} Rb4+ {[%emt 0:01:54]} 74. Kf3 {[%emt 0:00:09]} Rh4 {[%emt 0:00:11]} 75. Kg3 {[%emt 0:00:41]} Re4 {[%emt 0:01:14]} 76. Kf3 {[%emt 0:00:06]} Rb4 {[%emt 0:02:25]} 77. Kg3 $11 {[%emt 0:00:22]} 1/2-1/2

[Event "WYCC 2018 G14"]
[Site "Halkidiki"]
[Date "2018.10.30"]
[Round "11"]
[White "Kuhar, Larisa"]
[Black "Wen, Yili"]
[Result "0-1"]
[ECO "C68"]
[WhiteElo "1916"]
[BlackElo "2083"]
[Annotator "NA"]
[PlyCount "100"]
[EventDate "2018.10.20"]
[EventType "swiss"]
[EventCountry "GRE"]
[SourceTitle "playchess.com"]
[Source "ChessBase"]
[SourceQuality "1"]
[TimeControl "40/5400+30:1800+30"]

1. e4 {[%emt 0:00:00]} e5 {[%emt 0:00:00]} 2. Nf3 {[%emt 0:00:00]} Nc6 {[%emt 0:00:00]} 3. Bb5 {[%emt 0:00:00]} a6 {[%emt 0:00:00]} 4. Bxc6 {[%emt 0:00:07]} dxc6 {[%emt 0:00:00]} 5. O-O {[%emt 0:00:10]} f6 {[%emt 0:00:19]} 6. d4 {[%emt 0:00:32]} exd4 {[%emt 0:00:05]} 7. Nxd4 {[%emt 0:00:06]} c5 {[%emt 0:00:14]} 8. Ne2 {[%emt 0:00:13]} Qxd1 {[%emt 0:00:05]} 9. Rxd1 {[%emt 0:00:07]} Bd7 {[%emt 0:00:04]} 10. Nbc3 {[%emt 0:00:41]} O-O-O {[%emt 0:00:14]} 11. Be3 {[%emt 0:00:53]} Re8 {[%emt 0:01:17]} 12. Rd2 {[%emt 0:01:15] C69: Ruy Lopez: Exchange Variation with 5 0-0 f6} Bc6 {[%emt 0:00:37]} 13. Rad1 {[%emt 0:00:44]} b6 $146 {[%emt 0:02:01]} (13... Bd6 14. Bf4 Bxf4 15. Nxf4 Nh6 16. Nh5 Rhg8 17. f3 f5 18. Ng3 fxe4 19. Ncxe4 Re5 {1-0 (47) Socko,B (2617)-Nyback,T (2608) Germany 2015}) 14. Nf4 {[%emt 0:03:52]} Nh6 {[%emt 0:03:58]} 15. f3 {[%emt 0:03:34]} Nf7 {[%emt 0:02:30]} 16. Ncd5 {[%emt 0:03:57]} Ne5 {[%emt 0:00:54]} 17. b3 {[%emt 0:00:53]} h5 {[%emt 0:02:43]} 18. h4 {[%emt 0:05:44]} Kb7 {[%emt 0:02:34]} 19. c4 {[%emt 0:03:42]} Bd6 {[%emt 0:01:32]} 20. Kf2 {[%emt 0:10:03]} Ref8 {[%emt 0:11:24]} 21. Rc2 {[%emt 0:10:36]} Rf7 {[%emt 0:13:03]} 22. Ke2 {[%emt 0:09:57]} Bd7 {[%emt 0:10:11]} 23. Rcc1 {[%emt 0:08:50]} Nc6 {[%emt 0:11:27]} 24. Ng6 {[%emt 0:09:07]} Re8 {[%emt 0:00:24]} 25. Bf4 {[%emt 0:08:22]} Bxf4 {[%emt 0:07:51]} 26. Ngxf4 {[%emt 0:00:15]} f5 {[%emt 0:00:13]} 27. Kd3 {[%emt 0:01:48]} fxe4+ {[%emt 0:01:53]} 28. fxe4 {[%emt 0:02:17]} Nb4+ {[%emt 0:01:49]} 29. Nxb4 {[%emt 0:03:35]} Rxf4 {[%emt 0:00:08]} 30. Nd5 {[%emt 0:00:49]} Rfxe4 {[%emt 0:00:36]} 31. Rf1 {[%emt 0:04:06]} Rd4+ {[%emt 0:02:30]} 32. Kc3 {[%emt 0:01:38]} Bc6 {[%emt 0:03:12]} 33. Rf7 {[%emt 0:04:25]} Bxd5 {[%emt 0:00:18]} 34. cxd5 {[%emt 0:00:01]} Re3+ {[%emt 0:00:34]} 35. Kb2 {[%emt 0:00:20]} Re2+ {[%emt 0:00:08]} 36. Rc2 {[%emt 0:00:22]} Ree4 {[%emt 0:05:19]} 37. Rxg7 {[%emt 0:01:00]} Rxh4 {[%emt 0:00:04]} 38. Re2 {[%emt 0:00:41]} Rhg4 {[%emt 0:01:28]} 39. Rd7 {[%emt 0:00:57]} b5 {[%emt 0:07:22]} 40. Ree7 {[%emt 0:00:00]} Rxg2+ {[%emt 0:00:00]} 41. Kc1 {[%emt 0:04:27]} Rh4 {[%emt 0:08:06]} 42. Rxc7+ {[%emt 0:03:00]} Kb6 {[%emt 0:00:03]} 43. Rc6+ {[%emt 0:00:19]} Ka5 {[%emt 0:00:04]} 44. Re1 {[%emt 0:01:54]} Rxa2 {[%emt 0:01:06]} 45. Kb1 {[%emt 0:01:11]} Rhh2 {[%emt 0:03:04]} 46. Rxc5 {[%emt 0:03:58]} Rad2 {[%emt 0:08:11]} 47. Kc1 {[%emt 0:08:17]} Kb4 {[%emt 0:01:49]} 48. Rc6 {[%emt 0:00:19]} a5 {[%emt 0:00:21]} 49. Rd1 {[%emt 0:02:43]} Ra2 {[%emt 0:00:30]} 50. Kb1 {[%emt 0:00:47]} Ka3 {[%emt 0:00:07]} 0-1